bitfinex/quotes_ETHUSD_20251117
["timestamp","ask_amount","ask_price","bid_price","bid_amount"]
[1763358181917,1.1414,3187.9,3187.5,0.051]
[1763358182114,1.1414,3187.9,3186.6,0.001]
[1763358182115,0.4903,3187.5,3186.9,0.001]
[1763358182320,0.4903,3187.0,3186.6,0.001]
[1763358182549,0.5511,3186.8,3186.6,0.001]
[1763358182941,1.0092,3186.8,3186.6,0.001]
[1763358188154,0.3651,3186.8,3186.6,0.001]
[1763358189031,0.4581,3187.1,3186.7,0.4935]
[1763358189454,0.4581,3187.1,3186.7,0.001]
[1763358190556,0.6763,3186.8,3186.7,0.001]
[1763358190760,3.83293158,3186.8,3186.7,0.001]
[1763358191081,9.37120112,3186.8,3186.3,0.001]
[1763358191363,3.64563158,3186.4,3186.3,0.001]
[1763358191721,4.10373158,3186.4,3186.3,0.001]
[1763358192729,0.9471,3186.4,3186.3,0.001]
[1763358192951,1.1361747,3186.4,3186.3,0.001]
[1763358193229,1.1361747,3186.4,3185.0,0.405504]
[1763358193433,0.4581,3186.3,3185.0,0.405504]
[1763358193745,0.4903,3185.1,3184.5,0.1887]
[1763358194077,0.6763,3185.1,3184.2,0.405504]
[1763358194383,0.4581,3185.4,3184.2,4.10984965]
[1763358194657,0.186,3186.0,3184.1,0.005]
[1763358194658,0.49282642,3185.8,3184.6,0.405504]
[1763358194829,0.4581,3185.9,3184.4,0.405504]
[1763358195032,0.4581,3185.8,3184.4,0.405504]
[1763358195274,0.4581,3185.8,3184.2,0.405504]
[1763358195630,0.4581,3185.8,3184.2,4.51535365]
[1763358195833,0.4581,3185.8,3184.4,0.405504]
[1763358197271,0.4581,3185.8,3184.3,1.5392448]
[1763358199741,0.4581,3185.8,3184.7,1.5392448]
[1763358200431,0.186,3186.0,3184.7,1.5392448]
[1763358200832,0.186,3186.0,3185.2,1.5392448]
[1763358201063,0.4953,3186.4,3185.4,0.405504]
[1763358201367,0.4953,3186.4,3185.3,0.405504]
[1763358202742,0.4587,3185.4,3184.8,0.4953]
[1763358202946,0.4587,3185.4,3184.7,0.405504]
[1763358203252,0.4587,3185.4,3184.7,1.1337408]
[1763358203441,0.4587,3185.4,3184.8,0.405504]
[1763358203642,0.4587,3185.4,3184.7,1.1337408]
[1763358203875,0.6717,3185.6,3184.7,1.1337408]
[1763358204070,0.6717,3185.6,3184.8,0.405504]
[1763358204257,0.1928,3185.6,3184.8,0.405504]
[1763358207546,0.4789,3185.9,3184.8,0.405504]
[1763358207746,0.6717,3185.9,3184.8,0.405504]
[1763358208848,0.1928,3185.9,3185.1,1.5392448]
[1763358209173,0.1928,3185.9,3185.0,0.405504]
[1763358209384,0.6717,3185.9,3185.0,0.405504]
[1763358209673,0.6717,3185.9,3184.7,4.35076515]
[1763358209674,0.6717,3185.9,3184.8,0.405504]
[1763358210241,0.6717,3185.9,3184.8,1.5392448]
[1763358210450,0.4789,3186.2,3185.2,1.5392448]
[1763358213176,0.186,3186.8,3185.2,1.5392448]
[1763358213375,0.002,3186.4,3185.2,1.5365448]
[1763358213875,0.4809,3186.4,3185.2,5.3865448]
[1763358214547,0.4809,3186.4,3185.2,5.37129598]
[1763358214746,0.4809,3186.4,3185.7,3.16013421]
[1763358218097,0.4809,3186.4,3185.8,0.405504]
[1763358219474,0.002,3186.4,3185.8,0.405504]
[1763358219770,0.002,3186.4,3186.3,4.69937901]
[1763358220388,0.002,3186.4,3186.3,4.74937901]
[1763358222915,0.002,3186.4,3186.3,5.88444593]
[1763358241497,0.002,3186.8,3186.4,1.5392448]
[1763358241839,0.002,3186.8,3186.7,5.88444593]
[1763358242558,0.4717,3186.8,3186.7,5.88444593]
[1763358242720,0.9643,3186.8,3186.7,5.88444593]
[1763358242914,0.002,3186.8,3186.7,4.74700727]
[1763358244306,0.9643,3186.8,3186.7,1.1337408]
[1763358244838,0.9643,3186.8,3186.2,1.1337408]
[1763358245044,0.4697,3186.5,3186.2,1.1337408]
[1763358245243,0.4926,3186.7,3186.5,1.1337408]
[1763358245712,0.4697,3186.6,3186.5,1.1337408]
[1763358246221,0.9623,3186.6,3186.5,1.1337408]
[1763358248428,0.4697,3186.6,3186.5,1.5392448]
[1763358249060,0.9623,3186.6,3186.5,1.5392448]
[1763358249763,0.9643,3186.6,3186.5,1.5392448]
[1763358250555,0.002,3186.6,3186.5,1.5392448]
[1763358252457,0.4717,3186.6,3186.5,1.5392448]
[1763358252660,0.9643,3186.6,3186.5,1.5392448]
[1763358253556,0.9643,3186.6,3186.3,0.405504]
[1763358253759,0.4697,3186.4,3186.3,0.405504]
[1763358254138,0.9623,3186.4,3186.3,0.405504]
[1763358258882,0.9623,3186.4,3186.3,3.56441884]
[1763358259499,0.002,3186.6,3186.5,0.405504]
[1763358259791,0.002,3186.6,3186.5,7.85707448]
[1763358261980,0.454,3186.6,3186.5,7.85707448]
[1763358262179,0.454,3186.6,3186.5,4.69815964]
[1763358262793,0.454,3186.6,3186.5,7.85707448]
[1763358263488,0.454,3186.6,3186.5,4.69815964]
[1763358263999,0.9335,3186.6,3186.5,1.5392448]
[1763358264208,0.9335,3186.6,3186.5,1.1337408]
[1763358274015,0.9335,3186.6,3186.5,1.5392448]
[1763358274303,0.002,3186.6,3186.5,1.5392448]
[1763358275513,0.454,3186.6,3186.5,1.5392448]
[1763358276193,0.9335,3186.6,3186.5,1.5392448]
[1763358279922,0.9335,3186.6,3186.5,1.4887448]
[1763358280514,0.9335,3186.6,3186.5,1.4387448]
[1763358280920,0.454,3186.6,3186.5,1.4387448]
[1763358281346,0.9335,3186.6,3186.5,1.4387448]
[1763358284923,0.454,3186.6,3186.5,1.4387448]
[1763358285305,0.9335,3186.6,3186.5,1.4387448]
[1763358292757,0.002,3186.6,3186.5,1.4387448]
[1763358296749,0.4877,3186.6,3186.5,1.4387448]
[1763358297441,0.002,3186.6,3186.5,1.4387448]
[1763358297638,0.4877,3186.6,3186.5,1.4387448]
[1763358297844,0.9821,3186.6,3186.5,1.4387448]
[1763358298880,0.4877,3186.6,3186.5,1.4387448]
[1763358300481,0.9821,3186.6,3186.4,0.001]
[1763358300686,0.4857,3186.5,3186.0,0.001]
[1763358300843,0.4857,3186.1,3186.0,0.001]
[1763358301176,0.9801,3186.1,3186.0,0.001]
[1763358304981,0.9801,3186.1,3186.0,3.15991484]
[1763358305784,0.4964,3186.6,3186.1,0.405504]
[1763358306084,0.4964,3186.6,3186.5,3.15891484]
[1763358306285,0.9821,3186.6,3186.3,3.15891484]
[1763358306754,0.4857,3186.4,3186.3,3.15891484]
[1763358307546,0.9801,3186.4,3186.3,3.15891484]
[1763358308675,0.002,3186.6,3186.4,0.405504]
[1763358308873,0.002,3186.6,3186.5,3.56441884]
[1763358309096,0.002,3186.6,3186.5,6.72333368]
[1763358309303,0.002,3186.6,3186.5,7.85707448]
[1763358310679,0.002,3186.8,3186.7,0.455504]
[1763358310876,0.002,3186.8,3186.7,7.90707448]
[1763358311266,0.002,3186.8,3186.7,8.03280746]
[1763358312795,0.007,3186.9,3186.8,1.5392448]
[1763358312999,0.002,3187.1,3186.8,1.5392448]
[1763358313000,0.002,3187.1,3186.8,1.92561323]
[1763358313163,0.002,3187.6,3187.2,6.77333368]
[1763358315569,0.002,3187.6,3187.2,7.26773368]
[1763358315771,0.9821,3187.3,3186.9,3.15891484]
[1763358316003,0.6717,3186.9,3186.8,0.05]
[1763358316297,0.6717,3186.9,3186.8,0.455504]
[1763358316502,0.4857,3186.9,3186.8,0.455504]
[1763358317102,0.4857,3186.9,3186.8,4.74815964]
[1763358317504,0.002,3187.3,3186.9,0.405504]
[1763358317804,0.002,3187.3,3187.2,4.29265564]
[1763358318172,0.9491,3187.3,3187.2,4.29265564]
[1763358320215,0.9491,3187.3,3187.2,1.1337408]
[1763358320519,0.9491,3187.3,3187.2,4.29265564]
[1763358320818,0.9491,3187.3,3187.2,1.1337408]
[1763358327318,0.002,3187.3,3187.2,1.5392448]
[1763358328327,0.4845,3187.3,3187.2,1.5392448]
[1763358329613,0.002,3187.3,3187.2,1.5392448]
[1763358329812,0.4845,3187.3,3187.2,1.5392448]
[1763358330014,0.002,3187.3,3187.2,1.5392448]
[1763358330840,0.9682,3187.3,3187.2,1.5392448]
[1763358331211,0.9682,3187.3,3186.4,3.9]
[1763358331411,0.9662,3187.2,3186.4,0.05]
[1763358331739,0.4837,3187.1,3186.6,1.1337408]
[1763358331898,0.4837,3187.1,3186.7,0.405504]
[1763358332299,0.6808,3186.8,3186.7,0.405504]
[1763358333131,1.1645,3186.8,3186.7,0.405504]
[1763358336031,1.1645,3186.8,3186.7,3.56301325]
[1763358336213,1.1645,3186.8,3186.7,4.69675405]
[1763358343458,1.1645,3186.8,3186.7,1.5392448]
[1763358346772,0.002,3187.3,3186.7,1.5392448]
[1763358346931,0.4837,3187.2,3186.7,1.5392448]
[1763358347562,0.4837,3187.2,3186.8,3.15750925]
[1763358347920,0.4825,3186.9,3186.8,3.15750925]
[1763358348172,0.6808,3186.9,3186.8,3.15750925]
[1763358348462,1.1645,3186.9,3186.8,3.15750925]
[1763358355262,1.1645,3186.9,3186.8,3.15850925]
[1763358361069,1.1645,3186.9,3186.8,0.001]
[1763358362149,0.4825,3186.9,3186.8,0.001]
[1763358362355,0.9388,3186.9,3186.8,0.001]
[1763358364458,0.002,3187.1,3186.9,0.405504]
[1763358366551,0.002,3187.1,3187.0,3.56301325]
[1763358367441,0.002,3187.1,3187.0,4.74675405]
[1763358368882,0.002,3187.3,3187.2,4.69675405]
[1763358371069,0.002,3187.5,3187.4,0.455504]
[1763358371269,0.002,3187.5,3187.4,4.74675405]
[1763358371657,0.002,3187.5,3187.4,5.21129485]
[1763358371861,0.002,3187.5,3187.4,4.74675405]
[1763358372157,0.002,3187.6,3187.5,1.5392448]
[1763358372358,0.002,3187.6,3187.5,1.04394274]
[1763358372763,0.002,3187.6,3187.5,2.17768354]
[1763358376054,0.007,3187.9,3187.8,0.455504]
[1763358376253,0.007,3187.9,3187.8,3.61301325]
[1763358380891,0.007,3187.9,3187.8,11.03575945]
[1763358381087,0.002,3188.2,3187.9,1.5392448]
[1763358381387,0.84467537,3190.4,3187.8,9.49651465]
[1763358381388,0.4967,3189.3,3188.4,0.405504]
[1763358381563,0.4806,3189.2,3188.8,7.8487998]
[1763358383797,0.1826,3189.4,3188.8,7.8487998]
[1763358384095,0.4806,3189.3,3188.8,7.8987998]
[1763358385184,0.1826,3189.4,3188.8,7.8987998]
[1763358386471,0.1826,3189.4,3188.2,0.4806]
[1763358386472,0.1868,3189.7,3189.5,0.405504]
[1763358386671,0.1868,3189.7,3189.6,3.1547775]
[1763358386871,0.6507,3189.7,3189.6,3.1547775]
[1763358387198,1.1313,3189.7,3189.6,3.1547775]
[1763358390567,0.6507,3189.7,3189.6,6.309555]
[1763358390894,0.9445,3189.7,3189.6,6.309555]
[1763358392908,0.9465,3189.7,3189.6,6.309555]
[1763358393483,0.9465,3189.7,3189.3,0.405504]
[1763358393819,0.4639,3189.4,3189.3,3.5602815]
[1763358394175,0.9445,3189.4,3189.3,3.5602815]
[1763358398294,0.9445,3189.4,3189.0,3.1547775]
[1763358398519,0.4806,3189.3,3189.1,0.405504]
[1763358398928,0.4639,3189.2,3189.1,0.405504]
[1763358399318,0.9445,3189.2,3189.1,0.405504]
[1763358400502,0.9445,3189.2,3189.1,0.400214]
[1763358411542,0.4639,3189.2,3189.1,0.400214]
[1763358414026,0.469,3189.4,3189.1,1.5339548]
[1763358414228,0.469,3189.4,3189.3,3.5602815]
[1763358414634,0.9447,3189.4,3189.3,3.5602815]
[1763358421167,0.4777,3189.4,3189.3,3.5602815]
[1763358421336,0.002,3189.4,3189.3,3.5602815]
[1763358421537,0.4777,3189.4,3189.3,3.5602815]
[1763358422168,0.9447,3189.4,3189.3,3.5602815]
[1763358422566,0.002,3189.4,3189.3,7.8487998]
[1763358422732,0.002,3189.4,3189.3,8.79109224]
[1763358426973,0.002,3189.4,3189.3,5.63631474]
[1763358427180,0.9447,3189.4,3189.3,5.63631474]
[1763358427562,0.9447,3189.4,3189.3,4.6940223]
[1763358432486,0.002,3189.4,3189.3,7.8487998]
[1763358433189,0.002,3189.4,3189.3,5.1610223]
[1763358442938,0.002,3189.4,3189.3,5.15864386]
[1763358446935,0.4587,3189.4,3189.3,5.15864386]
[1763358448334,0.9445,3189.4,3189.3,5.15864386]
[1763358449747,0.4587,3189.4,3189.3,5.15864386]
[1763358451451,0.9445,3189.4,3189.3,5.15864386]
[1763358452364,0.4587,3189.4,3189.3,5.15864386]
[1763358453815,0.002,3189.4,3189.3,5.15864386]
[1763358455141,0.4587,3189.4,3189.3,5.15864386]
[1763358455849,0.9445,3189.4,3189.3,5.15864386]
[1763358457211,0.4587,3189.4,3189.3,5.15864386]
[1763358457724,0.9445,3189.4,3189.3,1.6007408]
[1763358458136,0.9445,3189.4,3189.3,4.75313986]
[1763358458332,0.9445,3189.4,3189.3,5.15864386]
[1763358459028,0.002,3189.7,3189.6,0.405504]
[1763358459225,0.002,3189.7,3189.6,4.69164386]
[1763358459657,0.002,3189.7,3189.6,4.81726233]
[1763358460254,0.005,3189.9,3189.8,0.405504]
[1763358460420,0.005,3189.9,3189.8,4.69164386]
[1763358460618,0.4617,3189.9,3189.8,4.69164386]
[1763358460830,1.1433,3189.9,3189.8,4.69164386]
[1763358461036,1.1433,3189.9,3189.6,3.97561847]
[1763358461363,0.4567,3189.7,3189.6,5.51486327]
[1763358461958,0.9425,3189.7,3189.6,5.51486327]
[1763358462854,0.9445,3189.7,3189.6,5.51486327]
[1763358465432,0.002,3189.7,3189.6,5.51486327]
[1763358465639,0.9445,3189.7,3189.6,5.51486327]
[1763358465836,0.9445,3189.7,3189.6,5.10935927]
[1763358466172,0.9445,3189.7,3189.6,1.25935927]
[1763358466668,0.9445,3189.7,3189.6,0.12561847]
[1763358466830,0.9445,3189.7,3189.2,0.405504]
[1763358467032,0.4567,3189.3,3189.2,0.405504]
[1763358467435,0.9425,3189.3,3189.2,0.405504]
[1763358467649,0.9425,3189.3,3189.2,0.891304]
[1763358468085,0.002,3189.7,3189.6,0.405504]
[1763358468247,0.2008,3189.9,3189.6,3.55790306]
[1763358468449,0.4567,3189.7,3189.3,0.405504]
[1763358468661,0.6866,3189.9,3189.8,1.1337408]
[1763358468847,0.2008,3189.9,3189.8,1.1337408]
[1763358469048,0.2008,3189.9,3189.7,3.64019906]
[1763358469049,0.6575,3189.9,3189.7,3.64019906]
[1763358469283,0.4567,3189.8,3189.7,4.04570306]
[1763358469459,0.9425,3189.8,3189.7,3.64019906]
[1763358474493,0.4765,3189.8,3189.7,3.64019906]
[1763358474653,0.9587,3189.8,3189.7,3.64019906]
[1763358475885,0.005,3189.9,3189.7,4.04570306]
[1763358476750,0.005,3189.9,3189.7,3.55790306]
[1763358476953,0.005,3189.9,3189.8,1.8015408]
[1763358477984,0.9637,3189.9,3189.8,1.073304]
[1763358479688,0.9657,3189.9,3189.8,0.6678]
[1763358480077,0.007,3189.9,3189.8,0.6678]
[1763358480271,0.9657,3189.9,3189.8,0.6678]
[1763358480485,0.4835,3189.9,3189.8,0.6678]
[1763358480691,0.9657,3189.9,3189.8,0.6678]
[1763358481503,0.9657,3189.9,3189.8,0.1678]
[1763358481699,0.9657,3189.9,3189.6,0.001]
[1763358481912,0.4045,3189.7,3189.6,0.001]
[1763358482083,0.58812322,3189.7,3189.6,0.001]
[1763358482284,1.82923223,3189.7,3189.6,0.001]
[1763358482716,0.8867,3189.7,3189.6,0.001]
[1763358494129,0.4045,3189.7,3189.6,0.001]
[1763358494459,0.8867,3189.7,3189.6,0.94334571]
[1763358494827,0.8867,3189.7,3189.6,0.001]
[1763358496230,0.4045,3189.7,3189.6,0.001]
[1763358496464,0.8867,3189.7,3189.6,0.001]
[1763358500496,0.4045,3189.7,3189.6,0.001]
[1763358500882,0.002,3189.8,3189.6,0.4299]
[1763358501082,0.002,3189.8,3189.7,3.58129906]
[1763358501621,0.002,3189.8,3189.7,3.98680306]
[1763358501770,0.002,3189.8,3189.7,5.54944386]
[1763358502108,0.002,3189.8,3189.7,6.22914386]
[1763358502418,0.002,3189.8,3189.7,5.80024386]
[1763358504886,0.002,3189.8,3189.7,9.38084192]
[1763358505195,0.002,3189.8,3189.7,6.22844286]
[1763358506708,0.002,3189.8,3189.7,5.79954286]
[1763358508910,0.4654,3189.8,3189.7,5.37064286]
[1763358509074,0.9581,3189.8,3189.7,5.37064286]
[1763358509279,0.9581,3189.8,3189.7,4.23690206]
[1763358509479,0.4654,3189.8,3189.7,4.23690206]
[1763358511517,0.002,3189.8,3189.7,4.23690206]
[1763358513822,0.4654,3189.8,3189.7,4.23690206]
[1763358513986,0.4654,3189.8,3189.7,3.83139806]
[1763358514187,0.9581,3189.8,3189.7,3.83139806]
[1763358515405,0.9581,3189.8,3189.7,3.15169806]
[1763358516021,0.4654,3189.8,3189.7,3.15169806]
[1763358516209,0.002,3189.8,3189.7,3.15169806]
[1763358517686,0.4654,3189.8,3189.7,3.15169806]
[1763358519606,0.002,3189.8,3189.7,3.15169806]
[1763358520527,0.4654,3189.8,3189.7,3.15169806]
[1763358522457,0.002,3189.8,3189.7,3.58059806]
[1763358523242,0.002,3189.8,3189.7,3.15169806]
[1763358523547,0.4654,3189.8,3189.7,3.15169806]
[1763358524424,0.002,3189.8,3189.7,3.15169806]
[1763358525224,0.002,3189.8,3189.7,5.11984286]
[1763358525432,0.002,3189.8,3189.7,5.54874286]
[1763358527130,0.002,3189.8,3189.7,5.11984286]
[1763358532317,0.4607,3189.8,3189.7,4.69094286]
[1763358532718,0.9544,3189.8,3189.7,4.69094286]
[1763358534571,0.002,3189.8,3189.7,4.69094286]
[1763358534872,0.4607,3189.8,3189.7,4.69094286]
[1763358536465,0.9544,3189.8,3189.7,4.69094286]
[1763358536954,0.4607,3189.8,3189.7,4.69094286]
[1763358538269,0.002,3189.8,3189.7,4.69094286]
[1763358538568,0.4607,3189.8,3189.7,4.69094286]
[1763358538768,0.002,3189.8,3189.7,4.69094286]
[1763358539382,0.002,3189.8,3189.7,5.11984286]
[1763358542273,0.29394358,3191.2,3190.2,0.405504]
[1763358542479,0.4937,3191.1,3190.2,7.13780012]
[1763358542637,0.67722111,3192.1,3190.2,8.70044092]
[1763358542833,0.4937,3191.1,3190.3,2.3970448]
[1763358543048,0.4987,3191.9,3190.3,2.3970448]
[1763358543247,0.4937,3191.2,3190.3,2.3970448]
[1763358543447,0.4937,3191.2,3190.3,2.5967448]
[1763358547475,0.4937,3191.1,3190.3,2.5967448]
[1763358547670,0.6934,3191.4,3190.5,0.05]
[1763358547878,0.1997,3191.4,3190.8,8.27154092]
[1763358548049,0.4937,3191.3,3190.8,8.27154092]
[1763358549578,0.1997,3191.4,3190.8,8.27154092]
[1763358549960,0.4937,3191.3,3190.8,8.27154092]
[1763358550365,0.007,3190.9,3190.8,8.27154092]
[1763358552687,0.007,3190.9,3190.8,8.89125484]
[1763358553365,0.007,3190.9,3190.8,9.32015484]
[1763358555199,0.007,3190.9,3190.8,9.51985484]
[1763358556583,0.007,3190.9,3190.8,9.09095484]
[1763358556900,0.007,3190.9,3190.8,9.51985484]
[1763358557124,0.002,3191.3,3191.2,7.84264092]
[1763358557279,0.002,3191.3,3191.2,8.27154092]
[1763358558473,0.002,3191.3,3191.2,8.70044092]
[1763358559174,0.002,3191.3,3191.2,8.27154092]
[1763358559514,0.002,3191.3,3191.2,8.45374092]
[1763358562176,0.002,3191.3,3191.2,8.88264092]
[1763358562867,0.4854,3191.3,3191.2,1.7214448]
[1763358563071,0.9577,3191.3,3191.2,1.1337408]
[1763358563303,0.9577,3191.3,3190.8,0.61971392]
[1763358563482,0.9577,3191.3,3190.7,3.15169806]
[1763358563483,0.6829,3190.9,3190.7,3.15169806]
[1763358563678,0.3958,3190.8,3190.7,3.15169806]
[1763358563905,0.8681,3190.8,3190.7,3.15169806]
[1763358564287,0.8681,3190.8,3190.7,3.55720206]
[1763358564494,0.8681,3190.8,3190.7,4.69094286]
[1763358564802,0.8681,3190.8,3190.7,4.68892825]
[1763358564803,0.3958,3190.8,3190.7,4.68892825]
[1763358565004,0.4723,3191.2,3190.8,1.1337408]
[1763358565301,0.4723,3191.2,3190.7,3.55518745]
[1763358565302,0.4723,3191.2,3190.9,3.14968345]
[1763358565772,0.4834,3191.0,3190.9,4.28342425]
[1763358566168,0.9557,3191.0,3190.9,4.28342425]
[1763358566399,0.9557,3191.0,3190.9,4.68892825]
[1763358566908,0.9557,3191.0,3190.9,1.1337408]
[1763358568610,0.9557,3191.0,3190.8,0.001]
[1763358568788,1.0597,3190.9,3190.8,0.001]
[1763358578645,0.3879,3190.9,3190.8,0.001]
[1763358579012,0.8602,3190.9,3190.8,0.001]
[1763358579310,1.0597,3190.9,3190.8,0.001]
[1763358581214,0.5874,3190.9,3190.8,0.001]
[1763358581616,1.0597,3190.9,3190.8,0.001]
[1763358584143,0.3879,3190.9,3190.8,3.15068345]
[1763358584624,0.8602,3190.9,3190.8,3.15068345]
[1763358586312,0.8622,3190.9,3190.8,3.15068345]
[1763358587263,1.0617,3190.9,3190.8,3.15068345]
[1763358589976,0.002,3190.9,3190.8,4.71332425]
[1763358590273,0.002,3190.9,3190.8,5.54772825]
[1763358594590,0.002,3190.9,3190.8,5.67331477]
[1763358599098,0.002,3191.3,3191.1,0.405504]
[1763358599277,0.002,3191.3,3191.2,3.98408745]
[1763358599663,0.002,3191.3,3191.2,4.41298745]
[1763358600297,0.002,3191.3,3191.2,5.54672825]
[1763358600863,0.002,3191.3,3191.2,9.39672825]
[1763358601095,0.002,3191.6,3191.5,0.405504]
[1763358601273,0.002,3191.6,3191.5,5.11782825]
[1763358601468,0.002,3191.6,3191.5,4.68892825]
[1763358601765,0.002,3191.6,3191.5,5.16782825]
[1763358601988,0.002,3191.6,3191.5,5.59672825]
[1763358602296,0.002,3191.6,3191.5,5.16782825]
[1763358602498,0.002,3191.6,3191.5,5.59672825]
[1763358603672,0.002,3191.6,3191.5,6.02562825]
[1763358604481,0.002,3191.6,3191.5,5.59672825]
[1763358606910,0.002,3191.6,3191.5,9.44672825]
[1763358608012,0.5011,3191.6,3191.5,9.01782825]
[1763358608218,0.002,3191.6,3191.5,9.01782825]
[1763358608596,0.002,3191.6,3191.5,9.44672825]
[1763358608915,0.002,3191.7,3191.6,1.5392448]
[1763358609229,0.002,3191.7,3191.6,2.3970448]
[1763358611796,0.002,3191.7,3191.6,2.52258797]
[1763358612723,0.002,3191.7,3191.6,6.37258797]
[1763358613342,0.005,3191.9,3191.7,0.405504]
[1763358613529,0.005,3191.9,3191.8,4.71232425]
[1763358614021,0.005,3191.9,3191.8,1.1337408]
[1763358614022,0.6993,3191.9,3191.8,1.1337408]
[1763358614223,0.6993,3191.9,3191.8,4.28342425]
[1763358614224,1.1782,3191.9,3191.8,4.28342425]
[1763358615152,0.5041,3191.9,3191.8,4.28342425]
[1763358615653,0.4789,3192.7,3192.0,0.405504]
[1763358615822,0.4789,3192.7,3192.5,1.5392448]
[1763358616230,0.4991,3192.6,3192.5,1.5392448]
[1763358616859,0.9599,3192.6,3192.5,1.5392448]
[1763358617352,0.9599,3192.6,3192.5,2.16909807]
[1763358618558,0.4991,3192.6,3192.5,2.16909807]
[1763358620542,0.9599,3192.6,3192.5,2.16909807]
[1763358622974,0.005,3192.9,3192.5,2.59799807]
[1763358623278,0.4804,3193.9,3193.3,0.405504]
[1763358623450,0.4804,3193.9,3193.8,3.14968345]
[1763358623872,0.9759,3193.9,3193.8,3.14968345]
[1763358624172,0.5005,3193.9,3193.8,3.14968345]
[1763358624376,0.5005,3193.9,3193.8,3.55518745]
[1763358624873,0.9759,3193.9,3193.6,0.05]
[1763358625065,0.4804,3193.9,3193.8,3.14968345]
[1763358625262,0.005,3193.9,3193.8,3.14968345]
[1763358625471,0.5005,3193.9,3193.8,3.14968345]
[1763358625876,0.9759,3193.9,3193.8,3.14968345]
[1763358626776,0.9759,3193.9,3193.8,6.28797482]
[1763358630493,0.9759,3193.9,3193.8,3.14398741]
[1763358631604,0.9759,3193.9,3193.8,6.28797482]
[1763358633188,0.9759,3193.9,3193.8,3.14398741]
[1763358633587,0.9759,3193.9,3193.8,6.28797482]
[1763358636505,0.9759,3193.9,3193.8,3.14398741]
[1763358638107,0.9759,3193.9,3193.3,0.405504]
[1763358638309,0.4754,3193.8,3193.6,3.14398741]
[1763358638681,0.4955,3193.7,3193.6,3.14398741]
[1763358639308,0.9709,3193.7,3193.6,3.14398741]
[1763358642698,0.9709,3193.7,3193.0,0.001]
[1763358642897,0.007,3193.9,3193.2,4.27772821]
[1763358642898,0.3671,3193.3,3193.2,4.27772821]
[1763358643825,0.3671,3193.3,3193.2,1.1337408]
[1763358644029,0.8425,3193.3,3193.0,0.001]
[1763358644196,0.4942,3193.1,3193.0,0.001]
[1763358644828,0.9696,3193.1,3193.0,0.001]
[1763358659940,0.9716,3193.1,3193.0,0.001]
[1763358660450,0.002,3193.1,3193.0,0.001]
[1763358660769,0.4611,3193.1,3193.0,3.14498741]
[1763358661068,0.002,3193.1,3193.0,3.14498741]
[1763358661266,0.4611,3193.1,3193.0,3.14498741]
[1763358662368,0.002,3193.1,3193.0,3.57388741]
[1763358662941,0.002,3193.1,3193.0,7.14677482]
[1763358663539,0.005,3193.9,3193.1,0.405504]
[1763358663848,0.005,3193.9,3193.8,6.71687482]
[1763358664047,0.005,3193.9,3193.8,3.57288741]
[1763358665583,0.005,3193.9,3193.8,6.71687482]
[1763358665784,0.005,3193.9,3193.8,3.57288741]
[1763358666888,0.005,3193.9,3193.8,1.64686741]
[1763358669592,0.005,3193.9,3193.8,4.79085482]
[1763358669809,0.4914736,3195.2,3193.9,0.405504]
[1763358669988,0.4914736,3195.2,3195.1,7.87721962]
[1763358670300,0.1929,3195.9,3195.1,7.87721962]
[1763358670301,0.4956,3195.6,3195.1,3.14398741]
[1763358670603,0.4956,3195.6,3195.1,3.54229913]
[1763358670754,0.4956,3195.6,3195.1,1.53205252]
[1763358670960,0.005,3195.9,3195.3,4.0837239]
[1763358671193,0.005,3195.9,3195.3,4.1337239]
[1763358671496,0.005,3195.9,3195.6,4.0837239]
[1763358673278,0.4591,3195.7,3195.5,0.61585874]
[1763358673478,0.5006,3195.9,3195.5,0.61585874]
[1763358673693,0.4591,3195.6,3195.1,1.1337408]
[1763358674200,0.4956,3195.5,3195.1,1.1337408]
[1763358675206,0.4956,3195.7,3195.1,1.1337408]
[1763358675504,0.005,3195.9,3195.1,1.1337408]
[1763358675872,0.5006,3195.9,3195.1,1.1337408]
[1763358676276,0.5006,3195.9,3195.4,1.1337408]
[1763358676876,0.4978,3195.5,3195.4,1.1337408]
[1763358677275,0.4978,3195.5,3195.1,1.1337408]
[1763358678021,0.4978,3195.2,3194.4,0.4956]
[1763358678179,0.4978,3195.1,3194.7,1.1337408]
[1763358679316,0.4902,3195.7,3195.0,1.1337408]
[1763358680381,0.007,3195.9,3195.0,1.1337408]
[1763358680582,0.4902,3195.8,3195.0,1.1337408]
[1763358681012,0.4978,3195.1,3195.0,1.1337408]
[1763358681335,0.4978,3195.1,3193.8,3.13200019]
[1763358681336,0.4978,3195.1,3194.3,4.0837239]
[1763358681502,0.9473,3195.0,3194.0,4.0837239]
[1763358681887,0.6833,3194.9,3194.0,4.0837239]
[1763358682310,0.4892,3194.8,3194.0,4.0837239]
[1763358683925,0.4892,3194.8,3194.0,4.70262895]
[1763358684783,0.1941,3194.9,3194.0,4.0837239]
[1763358685405,0.4892,3194.8,3194.0,4.0837239]
[1763358685810,0.4892,3194.8,3193.8,0.406504]
[1763358686011,0.4892,3194.8,3194.1,4.0837239]
[1763358686809,0.4892,3194.8,3194.0,1.1337408]
[1763358688317,0.4892,3194.8,3193.8,0.001]
[1763358688318,0.4581,3194.1,3193.8,0.001]
[1763358688527,0.4892,3194.8,3193.8,0.001]
[1763358688528,0.6522,3193.9,3193.8,0.001]
[1763358689036,1.1414,3193.9,3193.8,0.001]
[1763358689239,0.6833,3194.2,3193.8,0.001]
[1763358689439,0.1941,3194.9,3193.9,4.27500446]
[1763358689440,0.4892,3194.8,3193.9,4.27500446]